fUST/lending_fUST_20250310
["ID","MTS","AMOUNT","RATE_DAILY","PERIOD"]
[355810490,1741607454974,-2354.79,0.00050958,120]
[355810491,1741607454984,-500.0,0.00050958,120]
[355810492,1741607454994,-624.13,0.00050958,120]
[355810493,1741607455004,-500.0,0.00050958,120]
[355810494,1741607455014,-500.0,0.00050958,120]
[355810495,1741607455024,-555.58708174,0.00050958,120]
[355810496,1741607455033,-500.0,0.00050958,120]
[355810497,1741607455043,-500.0,0.00050958,120]
[355810498,1741607455053,-500.0,0.00050958,120]
[355810499,1741607455064,-500.0,0.00050958,120]
[355810500,1741607455073,-520.48902587,0.00050958,120]
[355810501,1741607455083,-500.0,0.00050958,2]
[355810502,1741607455093,-500.0,0.00050958,2]
[355810503,1741607455102,-500.0,0.00050958,2]
[355810504,1741607455112,-500.0,0.00050958,2]
[355810505,1741607455122,-500.0,0.00050958,2]
[355810506,1741607455132,-500.0,0.00050958,2]
[355810507,1741607455142,-500.0,0.00050958,120]
[355810508,1741607455151,-500.0,0.00050958,2]
[355810509,1741607455161,-500.0,0.00050958,2]
[355810510,1741607455170,-500.0,0.00050958,2]
[355810511,1741607455180,-500.0,0.00050958,2]
[355810512,1741607455190,-546.62,0.00050958,15]
[355810513,1741607455200,-560.80440369,0.00050958,120]
[355810514,1741607455209,-500.0,0.00050958,120]
[355810515,1741607455219,-502.51097671,0.00050958,2]
[355810516,1741607455229,-13853.78,0.00050958,2]
[355810517,1741607455239,-588.91,0.00050958,120]
[355810518,1741607455248,-1249.42,0.00050958,120]
[355810519,1741607455257,-529.09716334,0.00050958,120]
[355810520,1741607455267,-1898.59,0.00050958,120]
[355810521,1741607455277,-500.0,0.00050958,120]
[355810522,1741607455286,-1300.32,0.00050958,120]
[355810523,1741607455295,-216.187147,0.00050958,120]
[355810524,1741607455304,-500.0,0.00050958,120]
[355810525,1741607455320,-216.187147,0.00050958,120]
[355810526,1741607455336,-898.69,0.00050958,120]
[355810527,1741607455353,-500.0,0.00050958,120]
[355810528,1741607455365,-216.187147,0.00050958,120]
[355810529,1741607455380,-216.187143,0.00050958,120]
[355810530,1741607455393,-500.0,0.00050958,2]
[355810531,1741607455408,-500.0,0.00050958,120]
[355810532,1741607455423,-500.0,0.00050958,30]
[355810533,1741607455437,-500.0,0.00050958,120]
[355810534,1741607455454,-2200.46,0.00050958,120]
[355810535,1741607455468,-500.0,0.00050958,120]
[355810536,1741607455482,-500.0,0.00050958,120]
[355810537,1741607455498,-523.40362099,0.00050958,120]
[355810538,1741607455516,-500.0,0.00050958,2]
[355810539,1741607455531,-1450.8,0.00050958,120]
[355810540,1741607455547,-500.0,0.00050958,120]
[355810541,1741607455559,-2110.39,0.00050958,120]
[355810542,1741607455573,-500.0,0.00050958,120]
[355810543,1741607455587,-531.48026065,0.00050959,10]
[355810544,1741607455602,-500.0,0.00050967,6]
[355810545,1741607455617,-250.0,0.00051,120]
[355810546,1741607455632,-250.0,0.00051,120]
[355810547,1741607455647,-250.0,0.00051,120]
[355810548,1741607455662,-250.0,0.00051,120]
[355810549,1741607455674,-250.0,0.00051,120]
[355810550,1741607455686,-250.0,0.00051,120]
[355810551,1741607455699,-25000.0,0.00051,90]
[355810552,1741607455715,-160.0,0.00051,7]
[355810553,1741607455730,-189948.54406986,0.00051044,120]
[355810554,1741607455742,-200000.0,0.00051044,120]
[355810555,1741607455755,-200000.0,0.00051044,120]
[355810556,1741607455771,-129849.1629705,0.00051044,120]
[355810557,1741607455784,-20000.0,0.00051044,120]
[355810558,1741607455796,-10000.0,0.00051044,10]
[355810559,1741607455809,-50000.0,0.00051044,10]
[355810560,1741607455823,-500.0,0.00051044,15]
[355810561,1741607455836,-50000.0,0.00051044,30]
[355810562,1741607455850,-107500.0,0.00051044,31]
[355810563,1741607455862,-242163.0,0.00051044,7]
[355810564,1741607455874,-100308.83028487,0.00051044,7]
[355810565,1741607455886,-7349.08433123,0.00051044,2]
[355810566,1741607455897,-16702.28042314,0.00051044,2]
[355810567,1741607455909,-11761.80550271,0.00051044,2]
[355810568,1741607455921,-503.47767564,0.00051044,2]
[355810569,1741607455932,-177.70590413,0.00051044,2]
[355810570,1741607455944,-1860.18828189,0.00051044,2]
[355810571,1741607455955,-464.26212447,0.00051044,2]
[355810572,1741607455967,-505.88298114,0.00051044,7]
[355810573,1741607455979,-40741.41425115,0.00051044,20]
[355810574,1741607455992,-30200.63948745,0.00051044,3]
[355810575,1741607456004,-24991.66313239,0.00051044,120]
[355810576,1741607456015,-187.66003611,0.00051044,2]
[355810577,1741607456027,-100127.24687587,0.00051044,2]
[355810578,1741607456039,-1385.49207614,0.00051044,2]
[355810579,1741607456051,-300.73533698,0.00051044,2]
[355810580,1741607456064,-582.04464112,0.00051044,2]
[355810581,1741607456076,-5846.91101883,0.00051044,2]
[355810582,1741607456088,-24245.61185557,0.00051044,30]
[355810583,1741607456100,-31558.72798624,0.00051044,2]
[355810584,1741607456112,-9362.15824297,0.00051044,2]
[355810585,1741607456124,-364055.25783201,0.00051044,70]
[355810586,1741607456136,-398.0,0.00051044,120]
[355810587,1741607456148,-398.0,0.00051044,120]
[355810588,1741607456160,-398.0,0.00051044,120]
[355810589,1741607456172,-398.0,0.00051044,120]
[355810590,1741607456184,-398.0,0.00051044,120]
[355810591,1741607456196,-398.0,0.00051044,120]
[355810592,1741607456208,-398.0,0.00051044,120]
[355810593,1741607456220,-398.0,0.00051044,120]
[355810594,1741607456232,-398.0,0.00051044,120]
[355810595,1741607456244,-398.0,0.00051044,120]
[355810596,1741607456256,-398.0,0.00051044,120]
[355810597,1741607456268,-500.0,0.00051051,98]
[355810598,1741607456280,-156.34543567,0.00051068,120]
[355810599,1741607456291,-1000.0,0.00051071,2]
[355810600,1741607456304,-1500.0,0.00051071,10]
[355810601,1741607456317,-1500.0,0.00051071,10]
[355810602,1741607456330,-1500.0,0.00051071,10]
[355810603,1741607456342,-373.10789849,0.00051071,10]
[355810604,1741607456354,-1500.0,0.00051071,10]
[355810605,1741607456367,-500.0,0.00051073,10]
[355810606,1741607456378,-300.0,0.00051073,10]
[355810607,1741607456391,-763.03,0.000511,30]
[355810608,1741607456402,-500.0,0.00051104,6]
[355810609,1741607456415,-500.0,0.00051151,96]
[355810610,1741607456427,-500.0,0.00051232,120]
[355810611,1741607456438,-517.93799843,0.00051232,120]
[355810612,1741607456451,-500.0,0.00051232,120]
[355810613,1741607456464,-500.0,0.00051232,120]
[355810614,1741607456476,-526.05083208,0.00051232,120]
[355810615,1741607456488,-500.0,0.00051232,120]
[355810616,1741607456501,-534.27084388,0.00051232,120]
[355810617,1741607456516,-166.41342159,0.00051232,120]
[355810618,1741607456528,-500.0,0.00051232,120]
[355810619,1741607456542,-547.54604567,0.00051232,120]
[355810620,1741607456556,-500.0,0.00051232,120]
[355810621,1741607456572,-500.0,0.00051232,120]
[355810622,1741607456586,-500.0,0.00051232,120]
[355810623,1741607456599,-760.28,0.00051232,7]
[355810624,1741607456612,-500.0,0.00051232,120]
[355810625,1741607456625,-500.0,0.00051232,120]
[355810626,1741607456638,-500.0,0.00051232,120]
[355810627,1741607456654,-500.0,0.00051232,15]
[355810628,1741607456666,-500.0,0.00051232,120]
[355810629,1741607456681,-500.0,0.00051232,120]
[355810630,1741607456693,-500.0,0.00051232,120]
[355810631,1741607456707,-500.0,0.00051232,30]
[355810632,1741607456720,-500.0,0.00051232,120]
[355810633,1741607456732,-551.03006131,0.00051232,120]
[355810634,1741607456745,-500.0,0.00051232,120]
[355810635,1741607456967,-504.92995426,0.00051232,120]
[355810636,1741607456981,-500.0,0.00051232,120]
[355810637,1741607456991,-500.0,0.00051232,120]
[355810638,1741607457001,-500.0,0.00051232,120]
[355810639,1741607457010,-500.0,0.00051232,120]
[355810640,1741607457021,-500.0,0.00051232,120]
[355810641,1741607457031,-523.18858289,0.00051232,120]
[355810642,1741607457041,-500.0,0.00051232,120]
[355810643,1741607457051,-500.0,0.00051232,120]
[355810644,1741607457061,-500.0,0.00051232,120]
[355810645,1741607457071,-500.0,0.00051232,8]
[355810646,1741607457080,-500.0,0.00051232,120]
[355810647,1741607457089,-500.0,0.00051232,5]
[355810648,1741607457099,-500.0,0.00051232,120]
[355810649,1741607457109,-500.0,0.00051232,30]
[355810650,1741607457118,-500.0,0.00051232,120]
[355810651,1741607457127,-500.0,0.00051232,120]
[355810652,1741607457137,-500.0,0.00051232,120]
[355810653,1741607457147,-500.0,0.00051232,120]
[355810654,1741607457157,-970.08,0.00051232,120]
[355810655,1741607457168,-576.08586487,0.00051232,120]
[355810656,1741607457179,-517.31939611,0.00051232,120]
[355810657,1741607457188,-500.0,0.00051232,120]
[355810658,1741607457199,-500.0,0.00051232,120]
[355810659,1741607457208,-500.0,0.00051232,120]
[355810660,1741607457219,-500.0,0.00051232,120]
[355810661,1741607457228,-500.0,0.00051232,120]
[355810662,1741607457238,-500.0,0.00051232,120]
[355810663,1741607457248,-500.0,0.00051232,120]
[355810664,1741607457257,-500.0,0.00051232,120]
[355810665,1741607457267,-526.25,0.00051232,120]
[355810666,1741607457277,-500.0,0.00051232,120]
[355810667,1741607457287,-500.0,0.00051232,120]
[355810668,1741607457297,-500.0,0.00051232,120]
[355810669,1741607457306,-500.0,0.00051232,120]
[355810670,1741607457317,-500.0,0.00051232,120]
[355810671,1741607457327,-500.0,0.00051232,2]
[355810672,1741607457336,-500.0,0.00051232,120]
[355810673,1741607457346,-503.66744476,0.00051232,2]
[355810674,1741607457356,-511.91,0.00051232,120]
[355810675,1741607457366,-500.0,0.00051232,120]
[355810676,1741607457376,-604.52,0.00051232,120]
[355810677,1741607457386,-500.0,0.00051232,120]
[355810678,1741607457396,-500.0,0.00051232,120]
[355810679,1741607457406,-500.0,0.00051232,120]
[355810680,1741607457415,-500.0,0.00051232,120]
[355810681,1741607457425,-500.0,0.00051232,120]
[355810682,1741607457435,-500.0,0.00051232,120]
[355810683,1741607457444,-500.0,0.00051232,120]
[355810684,1741607457454,-530.03823401,0.00051232,120]
[355810685,1741607457464,-500.0,0.00051232,120]
[355810686,1741607457474,-500.0,0.00051232,120]
[355810687,1741607457483,-500.0,0.00051232,120]
[355810688,1741607457493,-500.0,0.00051232,120]
[355810689,1741607457504,-500.0,0.00051232,120]
[355810690,1741607457514,-500.0,0.00051232,120]
[355810691,1741607457523,-500.0,0.00051232,120]
[355810692,1741607457532,-500.0,0.00051232,120]
[355810693,1741607457543,-500.0,0.00051232,120]
[355810694,1741607457553,-500.0,0.00051232,120]
[355810695,1741607457563,-500.0,0.00051232,120]
[355810696,1741607457573,-500.0,0.00051232,120]
[355810697,1741607457583,-500.0,0.00051232,120]
[355810698,1741607457593,-500.0,0.00051232,120]
[355810699,1741607457603,-500.0,0.00051232,120]
[355810700,1741607457612,-515.44379657,0.00051232,120]
[355810701,1741607457622,-815.44,0.00051232,120]
[355810702,1741607457632,-500.0,0.00051232,120]
[355810703,1741607457641,-500.0,0.00051232,120]
[355810704,1741607457650,-568.27,0.00051232,120]
[355810705,1741607457660,-500.0,0.00051232,120]
[355810706,1741607457669,-530.44790698,0.00051232,120]
[355810707,1741607457680,-500.0,0.00051232,120]
[355810708,1741607457689,-865.23,0.00051232,120]
[355810709,1741607457699,-500.0,0.00051232,120]
[355810710,1741607457709,-500.0,0.00051232,120]
[355810711,1741607457719,-1000.0,0.00051232,5]
[355810712,1741607457729,-1169.92,0.00051232,120]
[355810713,1741607457739,-500.0,0.00051232,120]
[355810714,1741607457749,-500.0,0.00051232,120]
[355810715,1741607457759,-516.19129705,0.00051232,7]
[355810716,1741607457768,-884.21,0.00051232,120]
[355810717,1741607457778,-500.0,0.00051232,120]
[355810718,1741607457787,-500.0,0.00051232,120]
[355810719,1741607457797,-500.0,0.00051232,120]
[355810720,1741607457807,-500.0,0.00051232,120]
[355810721,1741607457818,-500.0,0.00051232,120]
[355810722,1741607457827,-607.55,0.00051232,120]
[355810723,1741607457838,-500.0,0.00051232,2]
[355810724,1741607457847,-635.6,0.00051232,120]
[355810725,1741607457858,-549.75371288,0.00051232,120]
[355810726,1741607457868,-500.0,0.00051232,120]
[355810727,1741607457877,-456.21715287,0.00051232,120]
[355810728,1741607457887,-500.0,0.00051232,120]
[355810729,1741607457897,-500.0,0.00051232,120]
[355810730,1741607457906,-500.0,0.00051232,120]
[355810731,1741607457916,-500.0,0.00051232,120]
[355810732,1741607457925,-500.0,0.00051232,120]
[355810733,1741607457935,-500.0,0.00051232,120]
[355810734,1741607457945,-500.0,0.00051232,120]
[355810735,1741607457955,-516.69251311,0.00051232,120]
[355810736,1741607457965,-500.0,0.00051232,120]
[355810737,1741607457975,-500.0,0.00051232,120]
[355810738,1741607457985,-500.0,0.00051232,120]
[355810739,1741607457995,-535.32893725,0.00051232,120]
[355810740,1741607458005,-500.0,0.00051232,120]
[355810741,1741607458015,-500.0,0.00051232,120]
[355810742,1741607458025,-500.0,0.00051232,120]
[355810743,1741607458035,-500.0,0.00051232,120]
[355810744,1741607458044,-1304.58,0.00051232,120]
[355810745,1741607458054,-500.0,0.00051232,120]
[355810746,1741607458064,-500.0,0.00051232,120]
[355810747,1741607458074,-646.1,0.00051232,120]
[355810748,1741607458084,-500.0,0.00051232,120]
[355810749,1741607458093,-567.39220537,0.00051232,120]
[355810750,1741607458104,-1500.0,0.00051232,2]
[355810751,1741607458114,-500.0,0.00051232,120]
[355810752,1741607458123,-500.0,0.00051232,120]
[355810753,1741607458133,-500.0,0.00051232,120]
[355810754,1741607458143,-500.0,0.00051232,120]
[355810755,1741607458153,-500.0,0.00051232,120]
[355810756,1741607458162,-3058.13,0.00051232,120]
[355810757,1741607458172,-500.0,0.00051232,120]
[355810758,1741607458182,-500.0,0.00051232,120]
[355810759,1741607458191,-500.0,0.00051232,120]
[355810760,1741607458201,-257.13933406,0.00051232,120]
[355810761,1741607458211,-500.0,0.00051232,120]
[355810762,1741607458220,-500.0,0.00051232,120]
[355810763,1741607458229,-521.05,0.00051232,120]
[355810764,1741607458239,-500.0,0.00051232,120]
[355810765,1741607458249,-500.0,0.00051232,120]
[355810766,1741607458258,-500.0,0.00051232,120]
[355810767,1741607458267,-392.9451356,0.00051232,120]
[355810768,1741607458276,-500.0,0.00051232,120]
[355810769,1741607458286,-500.0,0.00051232,120]
[355810770,1741607458296,-692.66,0.00051232,120]
[355810771,1741607458306,-500.0,0.00051232,120]
[355810772,1741607458316,-509.80530722,0.00051232,120]
[355810773,1741607458326,-500.0,0.00051232,120]
[355810774,1741607458336,-1550.78,0.00051232,120]
[355810775,1741607458345,-500.0,0.00051232,120]
[355810776,1741607458355,-500.0,0.00051232,120]
[355810777,1741607458365,-696.14,0.00051232,120]
[355810778,1741607458374,-500.0,0.00051232,120]
[355810779,1741607458384,-500.0,0.00051232,120]
[355810780,1741607458394,-516.42576219,0.00051232,120]
[355810781,1741607458403,-851.99,0.00051232,120]
[355810782,1741607458413,-398.02969366,0.00051232,120]
[355810783,1741607458423,-828.93,0.00051232,2]
[355810784,1741607458433,-500.0,0.00051232,120]
[355810785,1741607458442,-500.0,0.00051232,120]
[355810786,1741607458452,-540.09584521,0.00051232,120]
[355810787,1741607458461,-500.0,0.00051232,120]
[355810788,1741607458471,-500.0,0.00051232,120]
[355810789,1741607458480,-500.0,0.00051232,120]
[355810790,1741607458490,-500.0,0.00051232,120]
[355810791,1741607458503,-500.0,0.00051232,120]
[355810792,1741607458516,-1472.77,0.00051232,120]
[355810793,1741607458526,-1577.16,0.00051232,120]
[355810794,1741607458536,-325.18948198,0.00051232,120]
[355810795,1741607458547,-500.0,0.00051232,21]
[355810796,1741607458558,-500.0,0.00051232,120]
[355810797,1741607458568,-500.0,0.00051232,120]
[355810798,1741607458580,-500.0,0.00051232,120]
[355810799,1741607458590,-1586.54,0.00051232,120]
[355810800,1741607458599,-500.0,0.00051232,120]
[355810801,1741607458608,-500.0,0.00051232,120]
[355810802,1741607458619,-688.31,0.00051232,120]
[355810803,1741607458628,-2572.37,0.00051232,120]
[355810804,1741607458637,-500.0,0.00051232,120]
[355810805,1741607458647,-500.0,0.00051232,120]
[355810806,1741607458657,-500.0,0.00051232,120]
[355810807,1741607458666,-500.82,0.00051232,120]
[355810808,1741607458675,-500.0,0.00051232,120]
[355810809,1741607458684,-500.0,0.00051232,120]
[355810810,1741607458694,-500.0,0.00051232,120]
[355810811,1741607458703,-500.0,0.00051232,120]
[355810812,1741607458713,-519.37751715,0.00051232,120]
[355810813,1741607458722,-500.0,0.00051232,120]
[355810814,1741607458732,-506.30044374,0.00051232,120]
[355810815,1741607458741,-539.20569999,0.00051232,120]
[355810816,1741607458751,-500.0,0.00051232,120]
[355810817,1741607458761,-500.0,0.00051232,120]
[355810818,1741607458771,-500.0,0.00051232,120]
[355810819,1741607458780,-500.0,0.00051232,120]
[355810820,1741607458790,-645.81,0.00051232,120]
[355810821,1741607458800,-992.65,0.00051232,120]
[355810822,1741607458809,-500.0,0.00051232,120]
[355810823,1741607458819,-51310.55,0.00051232,7]
[355810824,1741607458829,-513.84124047,0.00051232,120]
[355810825,1741607458839,-500.0,0.00051232,120]
[355810826,1741607458848,-1066.71,0.00051232,120]
[355810827,1741607458858,-683.0,0.00051232,120]
[355810828,1741607458867,-1142.38,0.00051232,120]
[355810829,1741607458877,-500.0,0.00051232,120]
[355810830,1741607458886,-500.0,0.00051232,120]
[355810831,1741607458895,-1004.38,0.00051232,120]
[355810832,1741607458905,-500.0,0.00051232,120]
[355810833,1741607458914,-500.0,0.00051232,120]
[355810834,1741607458924,-500.0,0.00051232,120]
[355810835,1741607458933,-1039.43,0.00051232,120]
[355810836,1741607458943,-612.35,0.00051232,120]
[355810837,1741607458952,-500.0,0.00051232,120]
[355810838,1741607458961,-500.0,0.00051232,120]
[355810839,1741607458971,-3219.16,0.00051232,120]
[355810840,1741607458980,-3472.79,0.00051232,120]
[355810841,1741607458990,-4838.56,0.00051232,120]
[355810842,1741607458999,-500.0,0.00051232,120]
[355810843,1741607459009,-1935.38,0.00051232,60]
[355810844,1741607459019,-500.0,0.00051232,120]
[355810845,1741607459029,-500.0,0.00051232,120]
[355810846,1741607459038,-741.28,0.00051232,120]
[355810847,1741607459048,-610.98,0.00051232,120]
[355810848,1741607459057,-500.0,0.00051232,120]
[355810849,1741607459068,-500.0,0.00051232,120]
[355810850,1741607459078,-500.0,0.00051232,120]
[355810851,1741607459088,-500.0,0.00051232,120]
[355810852,1741607459097,-1041.66,0.00051232,120]
[355810853,1741607459107,-8237.64,0.00051232,120]
[355810854,1741607459116,-558.2,0.00051232,120]
[355810855,1741607459127,-670.89,0.00051232,120]
[355810856,1741607459255,-500.0,0.00051232,120]
[355810857,1741607459265,-500.0,0.00051232,120]
[355810858,1741607459275,-500.0,0.00051232,120]
[355810859,1741607459285,-556.54,0.00051232,120]
[355810860,1741607459294,-500.0,0.00051232,120]
[355810861,1741607459303,-500.0,0.00051232,120]
[355810862,1741607459319,-1523.15,0.00051232,120]
[355810863,1741607459329,-1333.19,0.00051232,120]
[355810864,1741607459339,-2915.64,0.00051232,120]
[355810865,1741607459349,-500.0,0.00051232,120]
[355810866,1741607459358,-1628.94,0.00051232,120]
[355810867,1741607459368,-500.0,0.00051232,120]
[355810868,1741607459377,-500.0,0.00051232,120]
[355810869,1741607459387,-1000.0,0.00051232,7]
[355810870,1741607459396,-500.0,0.00051232,120]
[355810871,1741607459406,-860.61,0.00051232,120]
[355810872,1741607459415,-500.0,0.00051232,120]
[355810873,1741607459424,-500.0,0.00051232,120]
[355810874,1741607459434,-500.0,0.00051232,120]
[355810875,1741607459443,-500.0,0.00051232,120]
[355810876,1741607459453,-500.0,0.00051232,120]
[355810877,1741607459462,-500.0,0.00051232,120]
[355810878,1741607459472,-925.83,0.00051232,120]
[355810879,1741607459481,-862.83,0.00051232,120]
[355810880,1741607459491,-1198.11,0.00051232,120]
[355810881,1741607459503,-500.0,0.00051232,120]
[355810882,1741607459512,-500.0,0.00051232,120]
[355810883,1741607459522,-500.0,0.00051232,120]
[355810884,1741607459531,-502.76,0.00051232,120]
[355810885,1741607459541,-525.88,0.00051232,120]
[355810886,1741607459551,-500.0,0.00051232,120]
[355810887,1741607459560,-504.2,0.00051232,120]
[355810888,1741607459570,-500.0,0.00051232,120]
[355810889,1741607459583,-4063.93,0.00051232,120]
[355810890,1741607459592,-500.0,0.00051232,120]
[355810891,1741607459602,-782.59,0.00051232,120]
[355810892,1741607459611,-500.0,0.00051232,120]
[355810893,1741607459620,-500.0,0.00051232,120]
[355810894,1741607459630,-605.17,0.00051232,120]
[355810895,1741607459639,-500.0,0.00051232,120]
[355810896,1741607459648,-1171.0,0.00051232,120]
[355810897,1741607459657,-500.0,0.00051232,120]
[355810898,1741607459667,-500.0,0.00051232,120]
[355810899,1741607459676,-500.0,0.00051232,120]
[355810900,1741607459686,-500.0,0.00051232,120]
[355810901,1741607459695,-500.0,0.00051232,120]
[355810902,1741607459704,-500.0,0.00051232,120]
[355810903,1741607459714,-500.0,0.00051232,120]
[355810904,1741607459723,-500.0,0.00051232,120]
[355810905,1741607459733,-500.0,0.00051232,120]
[355810906,1741607459743,-500.0,0.00051232,120]
[355810907,1741607459753,-500.0,0.00051232,120]
[355810908,1741607459763,-500.0,0.00051232,120]
[355810909,1741607459773,-513.91,0.00051232,120]
[355810910,1741607459783,-500.0,0.00051232,120]
[355810911,1741607459793,-500.0,0.00051232,120]
[355810912,1741607459802,-1446.04,0.00051232,120]
[355810913,1741607459811,-500.0,0.00051232,120]
[355810914,1741607459821,-6602.5,0.00051232,120]
[355810915,1741607459831,-732.07,0.00051232,120]
[355810916,1741607459841,-500.0,0.00051232,120]
[355810917,1741607459851,-892.31,0.00051232,120]
[355810918,1741607459861,-500.0,0.00051232,120]
[355810919,1741607459871,-500.0,0.00051232,120]
[355810920,1741607459880,-500.0,0.00051232,120]
[355810921,1741607459890,-500.0,0.00051232,120]
[355810922,1741607459899,-500.0,0.00051232,120]
[355810923,1741607459909,-541.21,0.00051232,120]
[355810924,1741607459919,-500.0,0.00051232,120]
[355810925,1741607459929,-500.0,0.00051232,120]
[355810926,1741607459938,-4651.51,0.00051232,120]
[355810927,1741607459948,-2354.79,0.00051232,120]
[355810928,1741607459957,-500.0,0.00051232,120]
[355810929,1741607459967,-624.13,0.00051232,120]
[355810930,1741607459977,-500.0,0.00051232,120]
[355810931,1741607459987,-500.0,0.00051232,120]
[355810932,1741607459997,-500.0,0.00051232,120]
[355810933,1741607460007,-500.0,0.00051232,120]
[355810934,1741607460016,-500.0,0.00051232,120]
[355810935,1741607460026,-500.0,0.00051232,120]
[355810936,1741607460036,-500.0,0.00051232,120]
[355810937,1741607460046,-546.62,0.00051232,15]
[355810938,1741607460055,-189.43100651,0.00051232,120]
[355810939,1741607460066,-13853.78,0.00051232,2]
[355810940,1741607460076,-588.91,0.00051232,120]
[355810941,1741607460085,-1249.42,0.00051232,120]
[355810942,1741607460095,-1898.59,0.00051232,120]
[355810943,1741607460104,-500.0,0.00051232,120]
[355810944,1741607460114,-1300.32,0.00051232,120]
[355810945,1741607460123,-500.0,0.00051232,120]
[355810946,1741607460133,-898.69,0.00051232,120]
[355810947,1741607460142,-500.0,0.00051232,120]
[355810948,1741607460152,-500.0,0.00051232,2]
[355810949,1741607460161,-500.0,0.00051232,120]
[355810950,1741607460171,-500.0,0.00051232,30]
[355810951,1741607460181,-500.0,0.00051232,120]
[355810952,1741607460191,-2200.46,0.00051232,120]
[355810953,1741607460201,-500.0,0.00051232,120]
[355810954,1741607460211,-500.0,0.00051232,120]
[355810955,1741607460220,-500.0,0.00051232,2]
[355810956,1741607460230,-1450.8,0.00051232,120]
[355810957,1741607460239,-506.51041761,0.00051232,120]
[355810958,1741607460248,-2110.39,0.00051232,120]
[355810959,1741607460258,-500.0,0.00051232,120]
[355810960,1741607460267,-500.0,0.00051241,6]
[355810961,1741607460277,-500.0,0.00051251,90]
[355810962,1741607460288,-500.98928716,0.00051273,10]
[355810963,1741607460298,-156.34543567,0.00051342,120]
[355810964,1741607460308,-500.0,0.00051351,97]
[355810965,1741607460318,-1082.50023953,0.00051376,7]
[355810966,1741607460328,-284.75,0.000514,30]
[355810967,1741607460338,-250.0,0.00051421,2]
[355810968,1741607460348,-500.0,0.00051451,96]
[355810969,1741607460358,-600.0,0.00051483,120]
[355810970,1741607460368,-850976.91897211,0.0005149,30]
[355810971,1741607460378,-568.23,0.000515,30]
[355810972,1741607460388,-511.82134341,0.00051506,120]
[355810973,1741607460398,-500.0,0.00051506,120]
[355810974,1741607460408,-500.0,0.00051506,120]
[355810975,1741607460417,-500.0,0.00051506,120]
[355810976,1741607460427,-500.0,0.00051506,120]
[355810977,1741607460437,-500.0,0.00051506,120]
[355810978,1741607460447,-500.0,0.00051506,120]
[355810979,1741607460456,-500.0,0.00051506,120]
[355810980,1741607460466,-760.28,0.00051506,7]
[355810981,1741607460475,-500.0,0.00051506,120]
[355810982,1741607460485,-500.0,0.00051506,120]
[355810983,1741607460495,-500.0,0.00051506,120]
[355810984,1741607460507,-500.0,0.00051506,15]
[355810985,1741607460517,-500.0,0.00051506,120]
[355810986,1741607460526,-582.99848869,0.00051506,120]
[355810987,1741607460535,-500.0,0.00051506,120]
[355810988,1741607460547,-501.06404677,0.00051506,30]
[355810989,1741607460556,-500.0,0.00051506,120]